fUSD/lending_fUSD_20240521
["ID","MTS","AMOUNT","RATE_DAILY","PERIOD"]
[327699262,1716325842698,-617.39,0.00031232,6]
[327699263,1716325842709,-500.0,0.00031232,6]
[327699264,1716325842719,-500.0,0.00031232,6]
[327699265,1716325842730,-500.0,0.00031232,6]
[327699266,1716325842741,-500.0,0.00031232,6]
[327699267,1716325842752,-500.0,0.00031232,6]
[327699268,1716325842763,-633.84549617,0.00031232,6]
[327699269,1716325842773,-500.0,0.00031232,6]
[327699270,1716325842783,-500.0,0.00031232,6]
[327699276,1716325842985,-500.0,0.00031232,6]
[327699277,1716325843036,-500.0,0.00031232,6]
[327699278,1716325843047,-500.0,0.00031232,6]
[327699279,1716325843057,-500.0,0.00031232,6]
[327699280,1716325843067,-500.0,0.00031232,6]
[327699281,1716325843077,-500.0,0.00031232,6]
[327699282,1716325843087,-500.0,0.00031232,6]
[327699283,1716325843096,-500.0,0.00031232,6]
[327699284,1716325843106,-499.44552825,0.00031232,6]
[327699285,1716325843116,-500.0,0.00031232,6]
[327699286,1716325843125,-500.0,0.00031232,6]
[327699287,1716325843135,-500.0,0.00031232,6]
[327699289,1716325843145,-500.0,0.00031232,6]
[327699290,1716325843154,-500.0,0.00031232,6]
[327699291,1716325843163,-500.0,0.00031232,6]
[327699292,1716325843172,-500.0,0.00031232,6]
[327699293,1716325843182,-500.0,0.00031232,6]
[327699294,1716325843191,-595.80556549,0.00031232,6]
[327699295,1716325843200,-516.08628157,0.00031232,6]
[327699296,1716325843211,-500.0,0.00031232,6]
[327699297,1716325843220,-500.0,0.00031232,6]
[327699298,1716325843230,-500.0,0.00031232,6]
[327699299,1716325843239,-500.0,0.00031232,6]
[327699300,1716325843249,-500.0,0.00031232,6]
[327699301,1716325843258,-500.0,0.00031232,6]
[327699302,1716325843268,-571.48,0.00031232,6]
[327699303,1716325843277,-500.0,0.00031232,6]
[327699304,1716325843287,-598.46,0.00031232,6]
[327699305,1716325843296,-500.0,0.00031232,6]
[327699306,1716325843305,-500.0,0.00031232,6]
[327699307,1716325843315,-807.54,0.00031232,6]
[327699308,1716325843324,-500.0,0.00031232,6]
[327699309,1716325843334,-500.0,0.00031232,6]
[327699310,1716325843343,-500.0,0.00031232,6]
[327699311,1716325843353,-500.0,0.00031232,6]
[327699312,1716325843363,-500.0,0.00031232,6]
[327699313,1716325843372,-500.0,0.00031232,6]
[327699314,1716325843382,-500.0,0.00031232,6]
[327699315,1716325843393,-500.0,0.00031232,6]
[327699316,1716325843403,-500.0,0.00031232,6]
[327699317,1716325843413,-500.0,0.00031232,6]
[327699318,1716325843422,-500.0,0.00031232,6]
[327699319,1716325843432,-500.0,0.00031232,6]
[327699320,1716325843442,-605.63,0.00031232,6]
[327699321,1716325843451,-500.0,0.00031232,6]
[327699322,1716325843461,-500.0,0.00031232,6]
[327699323,1716325843470,-500.0,0.00031232,6]
[327699324,1716325843479,-500.0,0.00031232,6]
[327699325,1716325843489,-500.0,0.00031232,6]
[327699326,1716325843498,-500.0,0.00031232,6]
[327699327,1716325843508,-500.0,0.00031232,6]
[327699328,1716325843518,-500.0,0.00031232,6]
[327699329,1716325843527,-500.0,0.00031232,6]
[327699330,1716325843537,-500.0,0.00031232,6]
[327699331,1716325843547,-500.0,0.00031232,6]
[327699332,1716325843557,-500.0,0.00031232,6]
[327699333,1716325843568,-500.0,0.00031232,6]
[327699334,1716325843578,-500.0,0.00031232,6]
[327699335,1716325843587,-500.0,0.00031232,6]
[327699336,1716325843597,-515.44,0.00031232,6]
[327699337,1716325843607,-500.0,0.00031232,6]
[327699338,1716325843616,-500.0,0.00031232,6]
[327699339,1716325843627,-500.0,0.00031232,6]
[327699340,1716325843637,-500.0,0.00031232,6]
[327699341,1716325843646,-500.0,0.00031232,6]
[327699343,1716325843655,-500.0,0.00031232,6]
[327699345,1716325843664,-500.0,0.00031232,6]
[327699346,1716325843674,-500.0,0.00031232,6]
[327699347,1716325843684,-1085.91,0.00031232,6]
[327699348,1716325843694,-500.0,0.00031232,6]
[327699349,1716325843704,-500.0,0.00031232,6]
[327699350,1716325843714,-500.0,0.00031232,6]
[327699351,1716325843724,-500.0,0.00031232,6]
[327699352,1716325843734,-500.0,0.00031232,6]
[327699353,1716325843745,-578.05,0.00031232,6]
[327699354,1716325843756,-500.0,0.00031232,6]
[327699355,1716325843767,-500.0,0.00031232,6]
[327699356,1716325843777,-500.0,0.00031232,6]
[327699357,1716325843787,-500.0,0.00031232,6]
[327699358,1716325843797,-659.04,0.00031232,6]
[327699359,1716325843807,-502.8133515,0.00031232,6]
[327699360,1716325843816,-1888.06,0.00031232,6]
[327699361,1716325843826,-500.0,0.00031232,6]
[327699362,1716325843835,-500.0,0.00031232,6]
[327699363,1716325843845,-596.52,0.00031232,6]
[327699364,1716325843855,-500.0,0.00031232,6]
[327699365,1716325843865,-566.0,0.00031232,6]
[327699366,1716325843875,-813.33,0.00031232,6]
[327699367,1716325843885,-500.0,0.00031232,6]
[327699368,1716325843898,-1142.16,0.00031232,6]
[327699369,1716325843908,-500.0,0.00031232,6]
[327699370,1716325843917,-500.0,0.00031232,6]
[327699371,1716325843927,-500.0,0.00031232,6]
[327699372,1716325843938,-500.0,0.00031232,6]
[327699373,1716325843947,-617.43,0.00031232,6]
[327699374,1716325843957,-500.0,0.00031232,6]
[327699375,1716325843967,-500.0,0.00031232,6]
[327699376,1716325843979,-500.0,0.00031232,6]
[327699377,1716325843989,-861.12,0.00031232,6]
[327699378,1716325844002,-773.85,0.00031232,6]
[327699379,1716325844012,-711.77,0.00031232,6]
[327699380,1716325844022,-500.0,0.00031232,6]
[327699381,1716325844032,-500.0,0.00031232,6]
[327699382,1716325844041,-574.6,0.00031232,6]
[327699383,1716325844050,-14596.63,0.00031232,6]
[327699384,1716325844060,-3314.54,0.00031232,6]
[327699385,1716325844070,-521.05,0.00031232,6]
[327699386,1716325844079,-4159.84,0.00031232,6]
[327699387,1716325844089,-500.0,0.00031232,6]
[327699388,1716325844099,-1032.78,0.00031232,6]
[327699389,1716325844108,-621.4,0.00031232,6]
[327699390,1716325844117,-500.0,0.00031232,6]
[327699391,1716325844127,-637.35,0.00031232,6]
[327699392,1716325844138,-2315.23,0.00031232,6]
[327699393,1716325844147,-614.46,0.00031232,6]
[327699394,1716325844156,-500.0,0.00031232,6]
[327699395,1716325844166,-500.0,0.00031232,6]
[327699396,1716325844175,-1151.87,0.00031232,6]
[327699397,1716325844184,-1097.47,0.00031232,6]
[327699398,1716325844193,-500.0,0.00031232,6]
[327699399,1716325844202,-500.0,0.00031232,6]
[327699400,1716325844211,-500.0,0.00031232,6]
[327699401,1716325844221,-500.0,0.00031232,6]
[327699402,1716325844230,-500.0,0.00031232,6]
[327699403,1716325844239,-500.0,0.00031232,6]
[327699404,1716325844248,-795.86,0.00031232,6]
[327699405,1716325844257,-500.0,0.00031232,6]
[327699406,1716325844266,-2863.41,0.00031232,6]
[327699407,1716325844276,-500.0,0.00031232,6]
[327699408,1716325844285,-1140.5,0.00031232,6]
[327699409,1716325844294,-821.03,0.00031232,6]
[327699410,1716325844303,-2595.7,0.00031232,6]
[327699411,1716325844312,-500.0,0.00031232,6]
[327699412,1716325844321,-731.06,0.00031232,6]
[327699413,1716325844330,-1118.5,0.00031232,6]
[327699414,1716325844339,-8412.25,0.00031232,6]
[327699415,1716325844349,-551.34,0.00031232,6]
[327699416,1716325844358,-1139.75,0.00031232,6]
[327699417,1716325844367,-1475.32,0.00031232,6]
[327699418,1716325844376,-581.4,0.00031232,6]
[327699419,1716325844385,-664.07,0.00031232,6]
[327699420,1716325844395,-503.39,0.00031232,6]
[327699421,1716325844404,-500.0,0.00031232,6]
[327699422,1716325844413,-500.0,0.00031232,6]
[327699423,1716325844422,-500.0,0.00031232,6]
[327699424,1716325844431,-755.13,0.00031232,6]
[327699425,1716325844440,-500.0,0.00031232,6]
[327699426,1716325844450,-944.85,0.00031232,6]
[327699427,1716325844459,-1107.06,0.00031232,6]
[327699428,1716325844467,-542.91,0.00031232,6]
[327699429,1716325844477,-500.0,0.00031232,6]
[327699430,1716325844486,-3559.27,0.00031232,6]
[327699431,1716325844495,-500.0,0.00031232,6]
[327699432,1716325844504,-500.0,0.00031232,6]
[327699433,1716325844514,-1307.21,0.00031232,6]
[327699434,1716325844524,-7762.98,0.00031232,6]
[327699435,1716325844534,-688.46,0.00031232,6]
[327699436,1716325844543,-1276.04,0.00031232,6]
[327699437,1716325844552,-500.0,0.00031232,6]
[327699438,1716325844562,-388.80308928,0.00031232,6]
[327699439,1716325844571,-500.0,0.00031232,6]
[327699440,1716325844581,-500.0,0.00031232,6]
[327699441,1716325844590,-711.82,0.00031232,6]
[327699442,1716325844599,-1785.54,0.00031232,6]
[327699443,1716325844608,-666.22,0.00031232,6]
[327699444,1716325844617,-500.0,0.00031232,6]
[327699445,1716325844626,-1142.19,0.00031232,6]
[327699446,1716325844635,-500.0,0.00031232,6]
[327699447,1716325844644,-1145.58,0.00031232,6]
[327699448,1716325844654,-604.95,0.00031232,6]
[327699449,1716325844663,-500.0,0.00031232,6]
[327699450,1716325844672,-2349.23,0.00031232,6]
[327699451,1716325844681,-2963.86,0.00031232,6]
[327699452,1716325844690,-431.40877521,0.00031232,6]
[327699453,1716325844699,-7963.41,0.00031232,6]
[327699454,1716325844709,-500.0,0.00031232,6]
[327699455,1716325844718,-1496.56,0.00031232,6]
[327699456,1716325844727,-1365.47,0.00031232,6]
[327699457,1716325844736,-1140.58,0.00031232,6]
[327699458,1716325844745,-500.0,0.00031232,6]
[327699459,1716325844755,-631.86,0.00031232,6]
[327699460,1716325844764,-909.86,0.00031232,6]
[327699461,1716325844773,-500.0,0.00031232,6]
[327699462,1716325844782,-958.75,0.00031232,6]
[327699463,1716325844792,-500.0,0.00031232,6]
[327699464,1716325844800,-500.0,0.00031232,6]
[327699465,1716325844810,-500.0,0.00031232,6]
[327699466,1716325844819,-500.0,0.00031232,6]
[327699467,1716325844828,-1736.13,0.00031232,6]
[327699468,1716325844837,-796.97,0.00031232,6]
[327699469,1716325844846,-500.0,0.00031232,6]
[327699470,1716325844856,-500.0,0.00031232,6]
[327699471,1716325844865,-576.66,0.00031232,6]
[327699472,1716325844874,-1247.06,0.00031232,6]
[327699473,1716325844886,-19938.9,0.00031232,6]
[327699474,1716325844896,-540.04,0.00031232,6]
[327699475,1716325844905,-570.86,0.00031232,6]
[327699476,1716325844914,-500.0,0.00031232,6]
[327699477,1716325844925,-500.0,0.00031232,6]
[327699478,1716325844934,-952.72,0.00031232,6]
[327699479,1716325844943,-2357.59617616,0.00031232,6]
[327699480,1716325845179,-298.11982334,0.00031232,6]
[327699481,1716325845239,-58.1540005,0.00031232,6]
[327699482,1716325845248,-273.1509995,0.00031232,6]
[327699483,1716325845260,-512.9590005,0.00031232,6]
[327699484,1716325845269,-1286.27,0.00031232,6]
[327699485,1716325845278,-500.0,0.00031232,6]
[327699486,1716325845287,-702.16,0.00031232,6]
[327699487,1716325845296,-2099.55,0.00031232,6]
[327699488,1716325845305,-919.85,0.00031232,6]
[327699489,1716325845314,-500.0,0.00031232,6]
[327699490,1716325845323,-2183.27,0.00031232,6]
[327699491,1716325845332,-1295.01,0.00031232,6]
[327699492,1716325845342,-500.0,0.00031232,6]
[327699493,1716325845351,-818.12,0.00031232,6]
[327699494,1716325845360,-500.0,0.00031232,6]
[327699495,1716325845370,-500.0,0.00031232,6]
[327699496,1716325845379,-500.0,0.00031232,6]
[327699497,1716325845389,-5403.48,0.00031232,6]
[327699498,1716325845399,-500.0,0.00031232,6]
[327699499,1716325845408,-523.46330649,0.00031232,6]
[327699500,1716325845417,-602.81020747,0.00031232,6]
[327699501,1716325845428,-1014.21979253,0.00031232,6]
[327699502,1716325845438,-985.78020747,0.00031232,6]
[327699503,1716325845448,-270.43870298,0.00031232,6]
[327699504,1716325845460,-880.66108955,0.00031232,6]
[327699505,1716325845469,-500.0,0.00031232,6]
[327699506,1716325845479,-1192.39,0.00031232,6]
[327699507,1716325845488,-500.0,0.00031232,6]
[327699508,1716325845497,-2048.26,0.00031232,6]
[327699509,1716325845506,-500.0,0.00031232,6]
[327699510,1716325845516,-261.17188649,0.00031232,6]
[327699511,1716325845525,-843.73706045,0.00031315,2]
[327699512,1716325845534,-700.64611605,0.0003134,2]
[327699513,1716325845543,-1565.66581161,0.0003138,2]
[327699514,1716325845552,-1038.068327,0.000314,2]
[327699515,1716325845562,-1000.0,0.00031444,2]
[327699516,1716325845572,-1379.38047262,0.00031464,3]
[327699517,1716325845583,-3088.25039059,0.00031464,3]
[327699518,1716325845592,-158.49166788,0.00031497,7]
[327699519,1716325845601,-160.0,0.000315,4]
[327699520,1716325845611,-128.39013327,0.000315,2]
[327699521,1716325845621,-21.60986673,0.000315,2]
[327699522,1716325845630,-160.0,0.000315,4]
[327699523,1716325845640,-150.0,0.000315,7]
[327699524,1716325845649,-500.0,0.00031506,6]
[327699525,1716325845658,-500.0,0.00031506,6]
[327699526,1716325845667,-500.0,0.00031506,6]
[327699527,1716325845676,-500.0,0.00031506,6]
[327699528,1716325845685,-500.0,0.00031506,6]
[327699529,1716325845694,-500.0,0.00031506,6]
[327699530,1716325845703,-59.44738667,0.00031506,6]
[327699531,1716325846052,-10859.41738551,0.00030958,7]
[327699532,1716325846064,-10813.14802373,0.00030958,7]
[327699533,1716325846076,-6556.13892243,0.00030958,7]
[327699534,1716325846089,-648.5229323,0.00030958,7]
[327699535,1716325846101,-633.84,0.00030958,7]
[327699536,1716325846144,-284.51111494,0.00030958,7]
[327699537,1716325846155,-22230.81641486,0.00030958,7]
[327699538,1716325846166,-4572.78453988,0.00030958,7]
[327699539,1716325846176,-775.896,0.00030958,7]
[327699540,1716325846187,-751.74894138,0.00030958,7]
[327699541,1716325846198,-795.2682055,0.00030958,7]
[327699542,1716325846209,-1007.38297438,0.00030958,7]
[327699543,1716325846220,-48961.01418801,0.00030958,7]
[327699544,1716325846229,-500.0,0.00030958,6]
[327699545,1716325846238,-498.42119597,0.00031232,6]
[327699546,1716325846248,-440.55261333,0.00031506,6]
[327699547,1716325846257,-500.0,0.00031506,6]
[327699548,1716325846266,-500.0,0.00031506,6]
[327699549,1716325846275,-500.0,0.00031506,6]
[327699550,1716325846284,-500.0,0.00031506,6]
[327699551,1716325846293,-500.0,0.00031506,6]
[327699552,1716325846302,-552.26,0.00031506,6]
[327699553,1716325846311,-500.0,0.00031506,6]
[327699554,1716325846320,-500.0,0.00031506,6]
[327699555,1716325846329,-500.0,0.00031506,6]
[327699556,1716325846338,-500.0,0.00031506,6]
[327699557,1716325846347,-500.0,0.00031506,6]
[327699558,1716325846356,-500.0,0.00031506,6]
[327699559,1716325846366,-500.0,0.00031506,6]
[327699560,1716325846375,-221.11660378,0.00031506,6]
[327699561,1716325846384,-500.0,0.00031506,6]
[327699562,1716325846394,-500.0,0.00031506,6]
[327699563,1716325846403,-500.0,0.00031506,6]
[327699564,1716325846412,-617.39,0.00031506,6]
[327699565,1716325846421,-500.0,0.00031506,6]
[327699566,1716325846430,-500.0,0.00031506,6]
[327699567,1716325846440,-500.0,0.00031506,6]
[327699568,1716325846449,-500.0,0.00031506,6]
[327699569,1716325846458,-500.0,0.00031506,6]
[327699570,1716325846467,-500.0,0.00031506,6]
[327699571,1716325846476,-500.0,0.00031506,6]
[327699572,1716325846486,-500.0,0.00031506,6]
[327699573,1716325846496,-500.0,0.00031506,6]
[327699574,1716325846505,-500.0,0.00031506,6]
[327699575,1716325846515,-500.0,0.00031506,6]
[327699576,1716325846524,-500.0,0.00031506,6]
[327699577,1716325846533,-500.0,0.00031506,6]
[327699578,1716325846542,-463.85808448,0.00031506,6]
[327699579,1716325846552,-500.0,0.00031506,6]
[327699580,1716325846560,-500.0,0.00031506,6]
[327699581,1716325846570,-500.0,0.00031506,6]
[327699582,1716325846579,-500.0,0.00031506,6]
[327699583,1716325846588,-500.0,0.00031506,6]
[327699584,1716325846597,-595.23803879,0.00031506,6]
[327699585,1716325846607,-500.0,0.00031506,6]
[327699586,1716325846616,-168.86125613,0.00031506,6]
[327699587,1716325846625,-500.0,0.00031506,6]
[327699588,1716325846634,-500.0,0.00031506,6]
[327699589,1716325846645,-399.08634813,0.00031506,6]
[327699590,1716325846654,-500.0,0.00031506,6]
[327699591,1716325846663,-500.0,0.00031506,6]
[327699592,1716325846672,-500.0,0.00031506,6]
[327699593,1716325846681,-571.48,0.00031506,6]
[327699594,1716325846690,-500.0,0.00031506,6]
[327699595,1716325846699,-598.46,0.00031506,6]
[327699596,1716325846709,-500.0,0.00031506,6]
[327699597,1716325846718,-500.0,0.00031506,6]
[327699598,1716325846726,-807.54,0.00031506,6]
[327699599,1716325846736,-500.0,0.00031506,6]
[327699600,1716325846746,-500.0,0.00031506,6]
[327699601,1716325846755,-500.0,0.00031506,6]
[327699602,1716325846764,-500.0,0.00031506,6]
[327699603,1716325846773,-500.0,0.00031506,6]
[327699604,1716325846782,-500.0,0.00031506,6]
[327699605,1716325846792,-500.0,0.00031506,6]
[327699606,1716325846801,-500.0,0.00031506,6]
[327699607,1716325846810,-500.0,0.00031506,6]
[327699608,1716325846819,-500.0,0.00031506,6]
[327699609,1716325846828,-500.0,0.00031506,6]
[327699610,1716325846837,-500.0,0.00031506,6]
[327699611,1716325846846,-605.63,0.00031506,6]
[327699612,1716325846855,-221.59729945,0.00031506,6]
[327699613,1716325846864,-500.0,0.00031506,6]
[327699614,1716325846873,-500.0,0.00031506,6]
[327699615,1716325846884,-492.39495969,0.00031506,6]
[327699616,1716325846894,-500.0,0.00031506,6]
[327699617,1716325846905,-500.0,0.00031506,6]
[327699618,1716325846914,-500.0,0.00031506,6]
[327699619,1716325846922,-500.0,0.00031506,6]
[327699620,1716325846932,-500.0,0.00031506,6]
[327699621,1716325846941,-500.0,0.00031506,6]
[327699622,1716325846950,-500.0,0.00031506,6]
[327699623,1716325846959,-500.0,0.00031506,6]
[327699624,1716325846969,-500.0,0.00031506,6]
[327699625,1716325846981,-500.0,0.00031506,6]
[327699626,1716325846990,-500.0,0.00031506,6]
[327699627,1716325846999,-515.44,0.00031506,6]
[327699628,1716325847008,-500.0,0.00031506,6]
[327699629,1716325847017,-500.0,0.00031506,6]
[327699630,1716325847026,-500.0,0.00031506,6]
[327699631,1716325847035,-500.0,0.00031506,6]
[327699632,1716325847044,-500.0,0.00031506,6]
[327699633,1716325847053,-500.0,0.00031506,6]
[327699634,1716325847063,-500.0,0.00031506,6]
[327699635,1716325847073,-500.0,0.00031506,6]
[327699636,1716325847082,-1085.91,0.00031506,6]
[327699637,1716325847091,-500.0,0.00031506,6]
[327699638,1716325847100,-500.0,0.00031506,6]
[327699639,1716325847110,-500.0,0.00031506,6]
[327699640,1716325847118,-500.0,0.00031506,6]
[327699641,1716325847128,-500.0,0.00031506,6]
[327699642,1716325847138,-578.05,0.00031506,6]
[327699643,1716325847147,-500.0,0.00031506,6]
[327699644,1716325847156,-500.0,0.00031506,6]
[327699645,1716325847166,-500.0,0.00031506,6]
[327699646,1716325847176,-500.0,0.00031506,6]
[327699647,1716325847185,-659.04,0.00031506,6]
[327699648,1716325847194,-625.39489,0.00031506,2]
[327699649,1716325847204,-1888.06,0.00031506,6]
[327699650,1716325847213,-500.0,0.00031506,6]
[327699651,1716325847222,-500.0,0.00031506,6]
[327699652,1716325847231,-500.0,0.00031506,6]
[327699653,1716325847241,-566.0,0.00031506,6]
[327699654,1716325847251,-813.33,0.00031506,6]
[327699655,1716325847260,-500.0,0.00031506,6]
[327699656,1716325847270,-1142.16,0.00031506,6]
[327699657,1716325847280,-500.0,0.00031506,6]
[327699658,1716325847289,-500.0,0.00031506,6]
[327699659,1716325847297,-500.0,0.00031506,6]
[327699660,1716325847307,-500.0,0.00031506,6]
[327699661,1716325847316,-617.43,0.00031506,6]
[327699662,1716325847327,-500.0,0.00031506,6]
[327699663,1716325847337,-500.0,0.00031506,6]
[327699664,1716325847346,-861.12,0.00031506,6]
[327699665,1716325847355,-500.0,0.00031506,2]
[327699666,1716325847364,-773.85,0.00031506,6]
[327699667,1716325847373,-711.77,0.00031506,6]
[327699668,1716325847382,-500.0,0.00031506,6]
[327699669,1716325847392,-500.0,0.00031506,6]
[327699670,1716325847402,-574.6,0.00031506,6]
[327699671,1716325847411,-14596.63,0.00031506,6]
[327699672,1716325847420,-3314.54,0.00031506,6]
[327699673,1716325847429,-521.05,0.00031506,6]
[327699674,1716325847438,-4159.84,0.00031506,6]
[327699675,1716325847447,-500.0,0.00031506,6]
[327699676,1716325847457,-1032.78,0.00031506,6]
[327699677,1716325847467,-621.4,0.00031506,6]
[327699678,1716325847476,-500.0,0.00031506,6]
[327699679,1716325847486,-637.35,0.00031506,6]
[327699680,1716325847496,-2315.23,0.00031506,6]
[327699681,1716325847505,-614.46,0.00031506,6]
[327699682,1716325847515,-500.0,0.00031506,6]
[327699683,1716325847524,-280.35960035,0.00031506,6]
[327699684,1716325847534,-1151.87,0.00031506,6]
[327699685,1716325847543,-1097.47,0.00031506,6]
[327699686,1716325847552,-500.0,0.00031506,6]
[327699687,1716325847561,-500.0,0.00031506,6]
[327699688,1716325847571,-500.0,0.00031506,6]
[327699689,1716325847580,-500.0,0.00031506,6]
[327699690,1716325847589,-500.0,0.00031506,6]
[327699691,1716325847599,-500.0,0.00031506,6]
[327699692,1716325847608,-795.86,0.00031506,6]
[327699693,1716325847617,-500.0,0.00031506,6]
[327699694,1716325847627,-2863.41,0.00031506,6]
[327699695,1716325847636,-500.0,0.00031506,6]
[327699696,1716325847646,-1140.5,0.00031506,6]
[327699697,1716325847655,-821.03,0.00031506,6]
[327699698,1716325847665,-2595.7,0.00031506,6]
[327699699,1716325847674,-500.0,0.00031506,6]
[327699700,1716325847685,-731.06,0.00031506,6]
[327699701,1716325847694,-1118.5,0.00031506,6]
[327699702,1716325847704,-8412.25,0.00031506,6]
[327699703,1716325847713,-551.34,0.00031506,6]
[327699704,1716325847722,-1139.75,0.00031506,6]
[327699705,1716325847731,-1475.32,0.00031506,6]
[327699706,1716325847740,-581.4,0.00031506,6]
[327699707,1716325847749,-664.07,0.00031506,6]
[327699708,1716325847758,-503.39,0.00031506,6]
[327699709,1716325847767,-500.0,0.00031506,6]
[327699710,1716325847777,-500.0,0.00031506,6]
[327699711,1716325847786,-500.0,0.00031506,6]
[327699712,1716325847795,-755.13,0.00031506,6]
[327699713,1716325847805,-500.0,0.00031506,6]
[327699714,1716325847814,-944.85,0.00031506,6]
[327699715,1716325847823,-1107.06,0.00031506,6]
[327699716,1716325847832,-542.91,0.00031506,6]
[327699717,1716325847841,-500.0,0.00031506,6]
[327699718,1716325847850,-3559.27,0.00031506,6]
[327699719,1716325847859,-500.0,0.00031506,6]
[327699720,1716325847868,-500.0,0.00031506,6]
[327699721,1716325847877,-1307.21,0.00031506,6]
[327699722,1716325847893,-7762.98,0.00031506,6]
[327699723,1716325847904,-688.46,0.00031506,6]
[327699725,1716325847913,-1276.04,0.00031506,6]
[327699726,1716325847923,-500.0,0.00031506,6]
[327699727,1716325847933,-500.0,0.00031506,6]
[327699728,1716325847942,-500.0,0.00031506,6]
[327699729,1716325847951,-711.82,0.00031506,6]
[327699730,1716325847963,-1785.54,0.00031506,6]
[327699731,1716325847972,-666.22,0.00031506,6]
[327699732,1716325847982,-500.0,0.00031506,6]
[327699733,1716325847991,-1142.19,0.00031506,6]
[327699734,1716325848001,-500.0,0.00031506,6]
[327699735,1716325848011,-1145.58,0.00031506,6]
[327699736,1716325848020,-604.95,0.00031506,6]
[327699737,1716325848029,-500.0,0.00031506,6]
[327699738,1716325848039,-2349.23,0.00031506,6]
[327699739,1716325848049,-2963.86,0.00031506,6]
[327699740,1716325848058,-3408.2496471,0.00031506,6]
[327699741,1716325848074,-4555.1603529,0.00031506,6]
[327699742,1716325848084,-500.0,0.00031506,6]
[327699743,1716325848093,-691.62590744,0.00031506,6]
[327699744,1716325848104,-804.93409256,0.00031506,6]
[327699745,1716325848114,-296.97464072,0.00031506,6]
[327699746,1716325848126,-1068.49535928,0.00031506,6]
[327699747,1716325848135,-1140.58,0.00031506,6]
[327699748,1716325848146,-500.0,0.00031506,6]
[327699749,1716325848155,-631.86,0.00031506,6]
[327699750,1716325848165,-909.86,0.00031506,6]
[327699751,1716325848175,-598.1265862,0.00031506,6]
[327699752,1716325848184,-958.75,0.00031506,6]
[327699753,1716325848194,-500.0,0.00031506,6]
[327699754,1716325848203,-625.69432544,0.00031506,6]
[327699755,1716325848214,-163.34,0.00031506,6]
[327699756,1716325848223,-500.0,0.00031506,6]
[327699757,1716325848232,-1736.13,0.00031506,6]
[327699758,1716325848242,-796.97,0.00031506,6]
[327699759,1716325848252,-500.0,0.00031506,6]
[327699760,1716325848261,-500.0,0.00031506,6]
[327699761,1716325848270,-576.66,0.00031506,6]
[327699762,1716325848279,-1247.06,0.00031506,6]
[327699763,1716325848288,-19589.29984801,0.00031506,6]
[327699764,1716325848300,-349.60015199,0.00031506,6]
[327699765,1716325848310,-540.04,0.00031506,6]
[327699766,1716325848319,-153.75984801,0.00031506,6]
[327699767,1716325848331,-417.10015199,0.00031506,6]
[327699768,1716325848340,-436.20474863,0.00031506,6]
[327699769,1716325848396,-63.79525137,0.00031506,6]
[327699770,1716325848407,-500.0,0.00031506,6]